bitfinex/quotes_ETHUSD_20250715
["timestamp","ask_amount","ask_price","bid_price","bid_amount"]
[1752613046943,0.164,3045.9,3045.7,0.4584]
[1752613047508,0.164,3045.9,3045.5,3.2835162]
[1752613047509,0.164,3045.9,3045.8,0.4584]
[1752613047928,0.164,3045.9,3045.6,0.4584]
[1752613048325,0.164,3045.9,3045.7,0.4584]
[1752613048511,0.164,3045.9,3045.8,0.4584]
[1752613049053,3.0,3046.0,3045.8,1.245]
[1752613049714,3.0,3046.0,3045.6,0.19683425]
[1752613049715,6.28299895,3046.0,3045.6,1.44183425]
[1752613049917,6.28299895,3046.0,3045.7,0.4584]
[1752613050803,0.165,3046.1,3045.7,0.4584]
[1752613050804,6.44792989,3046.1,3045.7,0.4584]
[1752613051938,0.165,3046.1,3045.8,0.4584]
[1752613052120,0.165,3046.1,3045.8,5.042]
[1752613052297,0.165,3046.1,3045.9,0.4584]
[1752613052503,0.165,3046.1,3045.8,5.042]
[1752613052698,3.44788753,3046.1,3045.8,5.042]
[1752613052902,3.44788753,3046.1,3045.8,5.5004]
[1752613053403,0.165,3046.1,3045.8,5.5004]
[1752613053924,0.165,3046.1,3045.8,5.042]
[1752613054435,0.165,3046.1,3045.9,0.4584]
[1752613055025,0.165,3046.1,3046.0,0.4584]
[1752613055238,0.001,3046.1,3045.9,0.4584]
[1752613055543,0.001,3046.1,3046.0,1.31572321]
[1752613055730,0.001,3046.1,3046.0,0.4584]
[1752613056800,3.28394198,3046.1,3045.8,6.35953209]
[1752613057128,3.001,3046.1,3045.8,6.35953209]
[1752613057307,6.28389565,3046.1,3045.8,6.35953209]
[1752613057503,6.28389565,3046.1,3045.8,5.53323209]
[1752613057835,0.001,3046.1,3045.8,5.53323209]
[1752613058044,0.001,3046.1,3045.9,0.4584]
[1752613058831,0.8127,3046.0,3045.8,0.03283209]
[1752613059143,3.44715932,3045.9,3045.5,0.002]
[1752613059439,3.44715932,3045.9,3045.6,0.4584]
[1752613059440,3.28321249,3045.8,3045.6,0.4584]
[1752613060136,3.28331746,3045.7,3045.6,0.4584]
[1752613060440,3.28331746,3045.7,3045.5,0.002]
[1752613060743,3.44711314,3045.9,3045.5,0.002]
[1752613060936,3.28334194,3045.7,3045.5,0.002]
[1752613061314,3.44715915,3045.9,3045.5,0.002]
[1752613061520,3.44715915,3045.9,3045.6,0.4584]
[1752613061721,3.44715915,3045.9,3045.7,5.4994]
[1752613062241,3.44715915,3045.9,3045.7,5.041]
[1752613062650,3.44715915,3045.9,3045.5,1.2921]
[1752613062651,3.28336846,3045.7,3045.5,0.002]
[1752613062858,3.28336846,3045.7,3045.6,5.041]
[1752613064151,4.05056352,3045.8,3045.6,5.041]
[1752613064717,3.28331746,3045.7,3045.6,5.041]
[1752613065339,4.05054394,3045.8,3045.6,5.041]
[1752613066552,3.44742526,3045.6,3045.5,0.002]
[1752613067915,0.164,3045.6,3045.5,0.002]
[1752613068244,3.44742526,3045.6,3045.5,0.002]
[1752613068944,0.164,3045.6,3045.5,0.4715]
[1752613073063,3.0,3046.0,3045.5,3.75503308]
[1752613073360,3.0,3046.0,3045.6,0.4695]
[1752613073361,3.44712038,3045.9,3045.6,0.4695]
[1752613073569,3.44712038,3045.9,3045.7,5.04]
[1752613074184,3.28320966,3045.8,3045.7,5.04]
[1752613075270,3.28342526,3045.6,3045.5,0.002]
[1752613075647,3.71262526,3045.6,3045.5,0.002]
[1752613078946,3.28342526,3045.6,3045.5,0.002]
[1752613080568,4.42970519,3045.7,3045.5,0.002]
[1752613080769,6.28424941,3045.8,3045.5,0.002]
[1752613080986,0.164,3045.6,3045.5,0.4715]
[1752613082553,0.001,3045.8,3045.5,0.66833533]
[1752613082904,0.001,3045.8,3045.6,8.32242526]
[1752613083181,0.001,3045.8,3045.7,0.89907606]
[1752613083351,0.001,3045.8,3045.7,1.36857606]
[1752613083552,0.001,3045.8,3045.7,4.65189352]
[1752613083755,0.001,3045.8,3045.7,5.49462669]
[1752613083982,0.001,3045.8,3045.7,2.37530923]
[1752613084189,0.001,3045.8,3045.7,1.56540923]
[1752613084392,0.001,3045.8,3045.7,1.09590923]
[1752613084602,0.001,3045.8,3045.7,1.56540923]
[1752613085112,0.001,3045.8,3045.7,4.84872669]
[1752613085680,0.001,3045.8,3045.7,1.56540923]
[1752613085998,0.001,3045.8,3045.7,4.84872669]
[1752613092325,0.001,3045.8,3045.7,1.56540923]
[1752613092514,0.001,3045.8,3045.7,4.84872669]
[1752613094003,0.001,3045.8,3045.7,1.56540923]
[1752613094825,0.001,3045.8,3045.7,4.84872669]
[1752613098028,0.001,3045.8,3045.7,12.85177804]
[1752613098228,0.001,3045.8,3045.7,12.81894487]
[1752613102402,0.001,3045.8,3045.7,0.164]
[1752613102622,1.2037,3045.8,3045.5,0.002]
[1752613102813,0.7692,3045.8,3045.6,5.035]
[1752613103016,0.001,3045.8,3045.6,5.035]
[1752613104119,0.001,3045.8,3045.6,8.31841607]
[1752613104312,0.001,3045.8,3045.6,5.035]
[1752613105131,0.001,3045.8,3045.7,3.89951746]
[1752613105336,0.001,3045.8,3045.7,3.93235063]
[1752613106431,0.001,3045.8,3045.7,4.72295063]
[1752613113344,0.001,3045.8,3045.7,11.94256881]
[1752613115433,0.001,3045.8,3045.7,4.69011746]
[1752613115664,0.001,3045.8,3045.7,6.78417624]
[1752613115962,0.001,3045.8,3045.7,6.75134307]
[1752613118132,0.001,3046.1,3045.7,11.98134307]
[1752613118472,0.001,3046.1,3046.0,11.33814544]
[1752613118779,0.001,3046.1,3046.0,16.53514544]
[1752613118976,0.001,3046.1,3046.0,19.01438958]
[1752613121175,0.001,3046.1,3046.0,19.56438958]
[1752613121537,0.001,3046.1,3046.0,16.50138958]
[1752613121887,0.001,3046.1,3046.0,21.53438958]
[1752613124279,0.001,3046.8,3046.7,3.2822398]
[1752613124435,0.001,3046.8,3046.7,9.0810003]
[1752613124635,0.001,3046.8,3046.7,9.66437791]
[1752613125880,0.001,3046.8,3046.7,9.65437791]
[1752613130699,0.001,3046.8,3046.0,2.02704414]
[1752613130896,0.7506,3046.7,3046.6,3.28234753]
[1752613131104,0.001,3046.8,3046.7,3.2822398]
[1752613131261,0.001,3046.8,3046.7,3.31506219]
[1752613131461,0.001,3046.8,3046.7,4.59982267]
[1752613132502,0.001,3046.8,3046.7,0.03282239]
[1752613132662,0.001,3046.8,3046.6,5.031]
[1752613132663,0.4755,3046.8,3045.7,0.7753]
[1752613132857,0.7888,3046.4,3045.8,5.03]
[1752613133201,1.2633,3046.4,3045.9,3.28303824]
[1752613133402,0.4745,3046.3,3046.0,5.03]
[1752613133695,0.7888,3046.4,3046.0,5.89413376]
[1752613133874,0.7888,3046.4,3046.2,3.28275817]
[1752613134089,0.7888,3046.4,3046.3,5.03]
[1752613134795,3.28268575,3046.3,3045.6,3.28342526]
[1752613134992,7.25245135,3046.7,3045.5,0.4442]
[1752613134993,0.8313,3046.1,3045.7,8.31324918]
[1752613135219,0.4745,3046.0,3045.7,8.31324918]
[1752613135992,0.4745,3046.0,3045.8,3.28318121]
[1752613136195,0.4745,3046.0,3045.9,5.03]
[1752613136398,4.11423683,3046.1,3045.9,5.03]
[1752613136799,0.8313,3046.1,3045.9,5.03]
[1752613137018,0.4745,3046.0,3045.9,5.03]
[1752613139499,3.75749409,3046.0,3045.9,5.03]
[1752613144027,3.28299409,3046.0,3045.9,5.032]
[1752613144219,4.11423858,3046.1,3045.9,5.032]
[1752613144732,4.58873858,3046.1,3045.9,5.032]
[1752613144934,0.8313,3046.1,3045.9,5.032]
[1752613152351,0.4745,3046.0,3045.9,5.032]
[1752613152516,0.6385,3046.0,3045.9,5.032]
[1752613152848,3.92149409,3046.0,3045.9,5.032]
[1752613153211,0.6385,3046.0,3045.9,5.032]
[1752613153556,0.164,3046.0,3045.9,5.032]
[1752613154133,3.44699409,3046.0,3045.9,5.032]
[1752613154447,0.164,3046.0,3045.9,5.032]
[1752613157834,3.44699409,3046.0,3045.9,5.032]
[1752613158015,3.90279409,3046.0,3045.9,0.002]
[1752613158219,8.48165219,3046.0,3045.9,0.002]
[1752613159184,3.9393,3046.0,3045.9,0.002]
[1752613159387,7.67809409,3046.0,3045.9,0.002]
[1752613161385,3.9393,3046.0,3045.9,0.002]
[1752613162280,4.0345843,3046.2,3045.9,0.002]
[1752613162591,3.0,3046.1,3045.9,0.002]
[1752613163270,1.3716,3046.2,3045.9,0.002]
[1752613165509,3.28299409,3046.0,3045.9,0.002]
[1752613165805,6.28299409,3046.0,3045.9,0.002]
[1752613166187,6.73879409,3046.0,3045.9,0.002]
[1752613168827,3.4558,3046.0,3045.9,0.002]
[1752613169807,3.0,3046.0,3045.9,0.002]
[1752613170296,7.56448697,3046.0,3045.9,0.002]
[1752613170501,15.60803832,3046.0,3045.9,0.002]
[1752613170709,16.15803832,3046.0,3045.9,0.002]
[1752613172727,16.15803832,3046.0,3045.5,0.002]
[1752613172728,14.35587661,3045.6,3045.5,0.002]
[1752613172890,19.38287661,3045.6,3045.5,0.002]
[1752613173097,22.10529638,3045.6,3045.5,0.002]
[1752613173827,0.164,3045.9,3045.5,3.75225724]
[1752613174028,0.164,3045.9,3045.6,8.77721761]
[1752613174418,0.164,3045.9,3045.7,3.75003628]
[1752613174710,0.164,3045.9,3045.7,0.4668]
[1752613174912,0.164,3045.9,3045.6,9.14291173]
[1752613175130,0.164,3045.9,3045.8,0.4668]
[1752613175529,0.164,3045.9,3045.8,3.75000966]
[1752613175699,0.164,3045.9,3045.8,0.4668]
[1752613176343,0.164,3045.9,3045.7,3.28327039]
[1752613176644,0.164,3045.9,3045.8,0.4668]
[1752613180272,0.164,3045.9,3045.6,5.027]
[1752613180620,0.6198,3045.9,3045.5,0.002]
[1752613180826,1.2132,3045.8,3045.6,5.027]
[1752613181025,0.7574,3045.8,3045.6,5.027]
[1752613181326,0.4558,3045.7,3045.6,5.027]
[1752613181554,3.73911746,3045.7,3045.6,5.027]
[1752613181718,0.4558,3045.7,3045.5,0.002]
[1752613181923,4.66062526,3045.6,3045.5,0.002]
[1752613182875,7.20482526,3045.6,3045.5,0.002]
[1752613183059,9.54925353,3045.6,3045.5,0.002]
[1752613183963,9.09345353,3045.6,3045.5,0.002]
[1752613184182,7.66062526,3045.6,3045.5,0.002]
[1752613184482,14.91307661,3045.6,3045.5,0.002]
[1752613186648,7.20482526,3045.6,3045.5,0.002]
[1752613187049,7.65502526,3045.6,3045.5,0.002]
[1752613187258,9.36612879,3045.6,3045.5,0.002]
[1752613188463,44.94312879,3045.6,3045.5,0.002]
[1752613188672,44.94312879,3045.6,3045.5,1e-08]
[1752613190084,44.94312879,3045.6,3045.1,0.042]
[1752613190085,7.65055656,3045.2,3045.1,0.042]
[1752613190248,21.02343894,3045.2,3045.1,0.042]
[1752613190450,51.47363894,3045.2,3045.1,0.042]
[1752613191685,21.47363894,3045.2,3045.1,0.042]
[1752613191864,51.47363894,3045.2,3045.1,0.042]
[1752613193306,51.47363894,3045.2,3044.6,0.002]
[1752613193307,6.83439583,3044.7,3044.6,1e-08]
[1752613193504,45.60598676,3044.7,3044.6,1e-08]
[1752613193689,13.83073541,3044.7,3044.6,1e-08]
[1752613194199,8.80373541,3044.7,3044.6,1e-08]
[1752613194400,13.83073541,3044.7,3044.6,1e-08]
[1752613194575,43.83073541,3044.7,3044.6,1e-08]
[1752613195484,44.08344271,3044.7,3044.6,1e-08]
[1752613195895,38.80373541,3044.7,3044.6,1e-08]
[1752613196093,12.83053541,3044.7,3044.6,1e-08]
[1752613196599,13.28073541,3044.7,3044.6,1e-08]
[1752613197410,8.25373541,3044.7,3044.6,1e-08]
[1752613197578,13.28073541,3044.7,3044.6,1e-08]
[1752613199612,8.25373541,3044.7,3044.6,1e-08]
[1752613199815,13.28073541,3044.7,3044.6,1e-08]
[1752613199967,12.83053541,3044.7,3044.6,1e-08]
[1752613200167,13.28073541,3044.7,3044.6,1e-08]
[1752613201105,43.83073541,3044.7,3044.6,1e-08]
[1752613201597,7.64823528,3044.2,3044.1,0.04]
[1752613201762,13.11826797,3044.2,3044.1,0.04]
[1752613201965,13.56846797,3044.2,3044.1,0.04]
[1752613202716,0.7789,3043.7,3043.1,0.04]
[1752613202871,3.44996903,3043.3,3043.1,0.04]
[1752613203075,0.164,3043.3,3043.2,0.4346]
[1752613203314,3.0,3043.6,3043.2,0.8902607]
[1752613203517,8.027,3043.9,3043.3,0.7958]
[1752613203822,0.164,3043.7,3043.4,0.4346]
[1752613204022,0.164,3043.9,3043.5,3.28569081]
[1752613204183,0.164,3043.9,3043.6,0.4346]
[1752613204383,0.24983393,3044.8,3043.6,0.4346]
[1752613204384,0.164,3044.4,3043.9,0.7958]
[1752613204591,0.164,3044.4,3044.0,0.46745151]
[1752613204783,0.164,3044.4,3044.0,3.75252491]
[1752613204983,0.164,3044.4,3044.1,0.4346]
[1752613205306,0.164,3044.4,3044.2,0.4346]
[1752613205712,0.164,3044.4,3044.0,0.03285151]
[1752613205914,0.164,3044.4,3044.3,0.4346]
[1752613206098,0.164,3044.4,3043.9,0.7958]
[1752613206099,0.164,3044.4,3043.9,1.2304]
[1752613206277,3.28479402,3044.4,3044.0,0.4346]
[1752613206477,0.164,3044.1,3043.9,0.7958]
[1752613207131,0.164,3044.1,3044.0,0.4346]
[1752613207487,0.164,3044.1,3043.7,3.31823285]
[1752613207488,0.164,3044.1,3043.7,0.8009]
[1752613207692,0.164,3044.1,3043.8,0.4346]
[1752613208620,3.28525904,3043.9,3043.8,0.4346]
[1752613208917,3.28536697,3043.8,3043.6,0.4346]
[1752613209124,3.28536697,3043.8,3043.5,0.7979]
[1752613209425,3.28536697,3043.8,3043.7,0.4346]
[1752613210402,0.164,3043.9,3043.7,0.4346]
[1752613210602,3.28572829,3044.4,3043.9,0.7633]
[1752613210603,0.164,3044.1,3043.9,0.7633]
[1752613210810,0.001,3044.4,3044.1,0.7633]
[1752613211005,0.001,3044.4,3044.2,0.63144935]
[1752613211632,0.001,3044.4,3044.3,0.4346]
[1752613211991,0.001,3044.4,3044.3,3.71942738]
[1752613212211,0.001,3044.4,3044.3,5.19956193]
[1752613213294,0.001,3044.4,3044.3,1.91473455]
[1752613213506,0.001,3044.4,3044.3,10.22656193]
[1752613214329,0.001,3044.4,3044.3,6.94173455]
[1752613214834,0.001,3044.4,3044.3,1.1979]
[1752613215129,3.2848309,3044.3,3044.0,0.4346]
[1752613215292,3.2848309,3044.3,3044.1,0.463]
[1752613215638,3.28493528,3044.2,3044.0,5.027]
[1752613215818,3.28493528,3044.2,3044.1,0.463]
[1752613215991,3.44982182,3044.4,3044.1,0.463]
[1752613216429,3.28493528,3044.2,3044.0,5.027]
[1752613216733,3.28486436,3044.3,3044.1,0.463]
[1752613216932,3.28486436,3044.3,3044.2,0.463]
[1752613217526,0.165,3044.4,3044.2,0.463]
[1752613217904,3.44978284,3044.4,3044.3,0.463]
[1752613218411,0.165,3044.4,3044.3,0.463]
[1752613218613,3.44971948,3044.4,3044.3,0.463]
[1752613219032,0.165,3044.4,3044.3,0.463]
[1752613219429,3.44971948,3044.4,3044.3,0.463]
[1752613219825,0.165,3044.4,3044.3,0.463]
[1752613220207,3.44971948,3044.4,3044.0,5.027]
[1752613220463,3.2849904,3044.2,3044.1,0.463]
[1752613220950,3.28486118,3044.3,3044.1,0.463]
[1752613221158,0.165,3044.4,3044.2,0.463]
[1752613221307,0.165,3044.4,3044.3,0.463]
[1752613221507,3.28515111,3044.0,3043.9,0.9273]
[1752613221760,3.28511636,3044.1,3043.9,6.4502]
[1752613221921,3.2849301,3044.3,3043.9,5.9872]
[1752613222122,3.28482738,3044.3,3044.0,0.463]
[1752613222515,3.28493528,3044.2,3044.1,0.463]
[1752613222719,3.28488483,3044.3,3044.2,0.463]
[1752613223240,0.165,3044.4,3043.9,5.9872]
[1752613223241,0.165,3044.4,3044.0,0.463]
[1752613223546,3.28482738,3044.3,3044.1,0.463]
[1752613223748,3.28482738,3044.3,3044.2,0.463]
[1752613224485,3.4497529,3044.4,3044.2,0.463]
[1752613224767,3.28482738,3044.3,3044.2,0.463]
[1752613224972,3.28508432,3044.1,3043.9,6.4502]
[1752613225173,3.28508432,3044.1,3044.0,0.463]
[1752613225847,3.28499012,3044.2,3044.0,0.463]
[1752613226047,3.28485581,3044.3,3044.0,0.463]
[1752613226251,3.28498135,3044.2,3044.0,0.463]
[1752613226750,3.28498135,3044.2,3044.0,5.49]
[1752613227151,3.28485581,3044.3,3044.0,5.49]
[1752613227347,3.28515111,3044.0,3043.9,0.9602]
[1752613227560,3.28531538,3043.9,3043.7,0.463]
[1752613227762,0.164,3044.1,3043.8,5.489]
[1752613228075,0.164,3044.3,3044.0,0.8171]
[1752613228276,0.164,3044.3,3044.1,0.463]
[1752613228578,0.164,3044.3,3044.2,5.026]
[1752613228875,0.164,3044.3,3044.2,5.489]
[1752613229277,3.44882738,3044.3,3044.2,5.489]
[1752613229681,0.164,3044.3,3044.2,5.489]
[1752613229981,3.44882738,3044.3,3044.2,5.489]
[1752613230160,0.83744653,3044.3,3044.2,5.026]
[1752613230365,3.44882738,3044.3,3044.2,5.026]
[1752613231044,0.164,3044.3,3044.2,5.489]
[1752613231775,0.001,3044.4,3044.3,0.8194]
[1752613231982,0.001,3044.4,3044.3,5.55940422]
[1752613232664,0.001,3044.4,3044.3,5.52655595]
[1752613232862,0.001,3044.4,3044.3,6.10940422]
[1752613233263,0.001,3045.7,3045.4,3.28359611]
[1752613233482,0.001,3045.7,3045.5,6.2794]
[1752613233858,0.001,3045.7,3045.5,5.8164]
[1752613234055,0.001,3045.7,3045.6,0.463]
[1752613235142,0.001,3045.7,3045.2,0.463]
[1752613235143,3.284374,3045.7,3045.2,0.463]
[1752613235342,3.28354693,3045.5,3045.3,5.489]
[1752613236280,3.28355191,3045.5,3045.3,5.489]
[1752613237652,3.28355191,3045.5,3045.3,5.026]
[1752613238954,3.28380291,3045.3,3044.7,3.28434164]
[1752613239187,3.28365935,3045.4,3044.9,3.74717904]
[1752613239401,3.28365935,3045.4,3045.0,0.463]
[1752613239587,3.28365935,3045.4,3045.1,5.025]
[1752613239783,3.28377296,3045.3,3045.1,5.025]
[1752613239987,3.28385656,3045.2,3045.1,5.025]
[1752613240504,0.001,3045.7,3044.6,0.7904]
[1752613240505,0.7683,3045.1,3044.6,0.7904]
[1752613240710,0.7683,3045.1,3044.7,5.025]
[1752613240711,3.28428796,3044.8,3044.7,5.025]
[1752613242182,3.28480259,3044.4,3044.2,0.164]
[1752613242390,3.28480259,3044.4,3044.3,5.025]
[1752613243909,0.754,3044.6,3044.3,5.025]
[1752613244097,3.28463132,3044.5,3044.3,5.025]
[1752613244471,3.28482738,3044.3,3044.2,0.164]
[1752613244671,3.28499048,3044.2,3043.9,0.627]
[1752613244887,3.28499048,3044.2,3044.0,5.488]
[1752613245109,3.28486209,3044.3,3044.0,5.488]
[1752613245801,3.28495699,3044.2,3044.0,5.488]
[1752613246104,0.164,3044.5,3044.0,5.488]
[1752613246105,3.28486427,3044.3,3044.0,5.488]
[1752613246608,3.28476041,3044.4,3044.0,5.488]
[1752613246834,3.44869548,3044.5,3044.0,5.488]
[1752613246983,3.28479125,3044.4,3044.0,5.488]
[1752613247484,3.28479125,3044.4,3044.1,0.4556]
[1752613249130,0.164,3044.5,3044.1,0.4556]
[1752613249342,3.45565467,3044.9,3044.3,3.28474942]
[1752613249546,3.44826339,3044.9,3044.4,8.79812209]
[1752613249701,3.44826339,3044.9,3044.5,0.4556]
[1752613249901,3.44826339,3044.9,3044.6,0.4556]
[1752613250439,0.164,3044.9,3044.7,0.4556]
[1752613250631,0.164,3044.9,3044.7,5.4806]
[1752613252043,3.44819471,3044.9,3044.7,5.4806]
[1752613252239,0.164,3044.9,3044.7,5.4806]
[1752613253146,0.164,3045.2,3044.8,4.49208302]
[1752613253345,3.44793216,3045.2,3044.9,0.4556]
[1752613253504,3.44793216,3045.2,3045.0,5.025]
[1752613254016,3.44793216,3045.2,3045.0,5.4806]
[1752613254205,0.164,3045.2,3045.0,5.025]
[1752613254605,3.44792255,3045.2,3045.0,5.025]
[1752613256228,0.164,3045.2,3045.1,0.4556]
[1752613257547,3.44785656,3045.2,3045.1,0.4556]
[1752613258247,0.164,3045.2,3045.0,5.025]
[1752613258453,0.164,3045.2,3045.0,5.4806]
[1752613258814,3.44789915,3045.2,3045.0,5.4806]
[1752613259015,3.28415552,3045.0,3044.8,0.03284287]
[1752613259214,3.28415552,3045.0,3044.9,5.024]
[1752613259429,3.2840035,3045.1,3044.9,5.024]
[1752613259629,3.44790379,3045.2,3044.9,5.024]
[1752613260044,3.44790379,3045.2,3044.9,5.4796]
[1752613260530,0.164,3045.2,3044.9,5.4796]
[1752613260851,3.44786422,3045.2,3044.9,6.41442664]
[1752613261052,0.164,3045.2,3044.9,6.41442664]
[1752613261252,0.164,3045.2,3045.0,0.4556]
[1752613261433,0.164,3045.2,3045.1,5.024]
[1752613262269,3.44785656,3045.2,3045.1,5.024]
[1752613264676,5.39642791,3045.2,3044.6,0.48844503]
[1752613264877,3.44824653,3044.9,3044.8,5.024]
[1752613265619,3.4481801,3044.9,3044.8,5.024]
[1752613271199,3.28432709,3044.8,3044.6,5.024]
[1752613271399,3.44823391,3044.9,3044.6,5.4796]
[1752613271908,3.44822813,3044.9,3044.6,5.4796]
[1752613272084,3.44822813,3044.9,3044.6,5.024]
[1752613272290,3.44822813,3044.9,3044.7,0.4556]
[1752613272800,0.164,3044.9,3044.7,0.7701]
[1752613272998,3.28403715,3045.1,3044.8,0.4556]
[1752613273302,3.2841801,3044.9,3044.8,0.4556]
[1752613275135,3.2841004,3045.0,3044.8,0.4556]
[1752613275415,3.2841801,3044.9,3044.8,0.4556]
[1752613275883,3.28412334,3045.0,3044.8,0.4556]
[1752613276215,3.2841801,3044.9,3044.8,0.4556]
[1752613277414,3.28439583,3044.7,3044.5,0.164]
[1752613277622,3.28461159,3044.5,3044.4,0.002]
[1752613277994,3.44861159,3044.5,3044.4,0.002]
[1752613279881,4.70071159,3044.5,3044.4,0.002]
[1752613281884,4.23391159,3044.5,3044.4,0.002]
[1752613282193,5.95485312,3044.5,3044.4,0.002]
[1752613284959,4.23391159,3044.5,3044.4,0.002]
[1752613285255,3.2845914,3044.6,3044.4,0.4304]
[1752613285767,6.2845914,3044.6,3044.5,0.4284]
[1752613286828,3.28461159,3044.5,3044.4,0.002]
[1752613287252,6.28455742,3044.6,3044.4,0.002]
[1752613287428,3.28461159,3044.5,3044.4,0.4304]
[1752613288463,3.28461159,3044.5,3044.4,0.002]
[1752613291468,2.78461159,3044.5,3044.4,0.002]
[1752613293697,6.44854753,3044.6,3044.4,0.002]
[1752613293852,3.2842497,3044.9,3044.5,0.8176]
[1752613294051,3.28441177,3044.7,3044.6,0.4284]
[1752613294368,3.28434514,3044.8,3044.6,0.4284]
[1752613294779,3.28434514,3044.8,3044.5,5.8406]
[1752613294967,3.28434514,3044.8,3044.7,0.4284]
[1752613297154,3.28423303,3044.9,3044.7,0.4284]
[1752613297555,3.28428796,3044.8,3044.7,0.4284]
[1752613299101,3.28423163,3044.9,3044.7,0.4284]
[1752613299312,3.44812557,3045.0,3044.7,0.4284]
[1752613299513,3.44812557,3045.0,3044.5,6.76974066]
[1752613299721,0.001,3045.2,3044.9,0.8185]
[1752613299864,0.001,3045.2,3045.0,5.022]
[1752613300214,0.001,3045.2,3045.0,5.4504]
[1752613300877,0.001,3045.2,3045.1,0.4284]
[1752613301370,3.28485656,3045.2,3045.1,0.4284]
[1752613302104,0.001,3045.7,3045.1,12.43410472]
[1752613302393,0.001,3045.7,3045.6,8.07107266]
[1752613302700,3.28431746,3045.7,3045.6,5.8405]
[1752613302892,3.28342526,3045.6,3045.5,0.164]
[1752613303091,3.28342526,3045.6,3045.5,5.186]
[1752613303400,3.28342526,3045.6,3045.5,5.6144]
[1752613303587,3.28342526,3045.6,3045.5,5.186]
[1752613303787,3.28342526,3045.6,3045.5,0.164]
[1752613303987,3.28374872,3045.3,3045.2,0.5924]
[1752613304200,3.28374872,3045.3,3045.2,5.6144]
[1752613304384,3.28374872,3045.3,3045.2,6.25769]
[1752613307388,3.28369412,3045.4,3045.2,6.25769]
[1752613307591,3.28369412,3045.4,3045.3,0.4285]
[1752613309327,3.28374872,3045.3,3045.2,0.164]
[1752613309614,3.2839644,3045.1,3045.0,0.164]
[1752613309766,3.2839644,3045.1,3045.0,5.185]
[1752613309971,3.2839644,3045.1,3045.0,5.6135]
[1752613310199,3.2839644,3045.1,3045.0,0.5925]
[1752613310382,3.2839644,3045.1,3045.0,5.6135]
[1752613313125,0.164,3045.5,3045.0,6.25699429]
[1752613313286,3.28359813,3045.5,3045.1,0.4285]
[1752613313486,3.28359813,3045.5,3045.3,0.9773]
[1752613313785,3.28346072,3045.6,3045.4,5.4485]
[1752613313981,3.28346072,3045.6,3045.5,0.4285]
[1752613314181,3.28441206,3045.7,3045.5,0.4285]
[1752613314385,0.001,3045.7,3045.6,5.4485]
[1752613314588,0.001,3045.7,3045.6,5.99663364]
[1752613314823,0.001,3045.7,3045.6,9.31289315]
[1752613314991,0.001,3045.7,3045.6,10.2573589]
[1752613328469,0.001,3045.7,3045.6,10.8073589]
[1752613328663,0.001,3045.7,3045.6,13.8073589]
[1752613331042,0.001,3045.7,3045.6,21.05376868]
[1752613331244,0.001,3045.7,3045.6,4.95393364]
[1752613331542,0.001,3045.7,3045.6,5.181]
[1752613332331,0.001,3045.7,3045.6,5.21383425]
[1752613332537,0.001,3045.7,3045.6,8.92575951]
[1752613332875,0.001,3045.7,3045.6,8.89292526]
[1752613334049,0.001,3045.7,3045.6,5.6095]
[1752613334240,0.001,3045.7,3045.6,5.21383425]
[1752613334551,0.001,3045.7,3045.6,5.64233425]
[1752613334755,0.001,3045.7,3045.6,5.21383425]
[1752613336039,0.001,3045.7,3045.6,5.68573425]
[1752613337094,0.001,3045.7,3045.6,8.96915951]
[1752613337384,0.001,3045.7,3045.6,8.93632526]
[1752613339277,0.001,3045.7,3045.6,5.6529]
[1752613339458,0.001,3045.7,3045.6,5.68573425]
[1752613339636,0.001,3045.7,3045.6,5.21383425]
[1752613340972,0.001,3045.7,3045.6,5.68573425]
[1752613341366,0.001,3045.7,3045.6,10.74444979]
[1752613341562,0.001,3045.7,3045.6,11.46591554]
[1752613341783,0.001,3045.7,3045.6,14.46591554]
[1752613343509,0.001,3045.7,3045.6,16.43791554]
[1752613345088,0.001,3045.7,3045.6,21.11791554]
[1752613347372,0.04,3045.9,3045.8,5.80520966]
[1752613347578,0.04,3045.9,3045.8,32.88884581]
[1752613347890,0.04,3045.9,3045.8,33.49191372]
[1752613348732,0.001,3046.2,3046.1,0.55]
[1752613348891,0.001,3046.2,3046.1,9.69901517]
[1752613349076,0.001,3046.2,3046.1,10.30208631]
[1752613349279,0.001,3046.2,3046.1,11.85779366]
[1752613349717,0.001,3046.2,3046.1,16.82979366]
[1752613349886,1e-08,3046.2,3046.1,20.28979366]
[1752613350612,1e-08,3046.5,3046.4,7.64986302]
[1752613350915,1e-08,3046.5,3046.4,25.44194908]
[1752613351284,1e-08,3046.5,3046.4,25.91384908]
[1752613353418,1e-08,3046.5,3046.4,26.15429261]
[1752613354118,1e-08,3046.5,3046.4,15.28145956]
[1752613355985,1e-08,3046.5,3046.4,26.15429261]
[1752613357712,1e-08,3046.5,3046.4,28.12629261]
[1752613358789,1e-08,3046.9,3046.8,3.83213207]
[1752613358989,1e-08,3046.9,3046.8,29.36133382]
[1752613359197,1e-08,3046.9,3046.8,29.9644125]
[1752613359722,0.001,3047.3,3047.2,7.65160123]
[1752613359893,0.001,3047.3,3047.2,12.66560123]
[1752613360215,0.04,3047.9,3047.8,3.83105518]
[1752613360424,0.04,3047.9,3047.8,10.4089872]